[Event "Early-Titled-Tuesday-Blitz-April-02-2024"]
[Site "Chess.com"]
[Date "2024.04.02"]
[Round "3"]
[White "Alenzer"]
[Black "LiadCuba"]
[Result "0-1"]
[WhiteElo "2195"]
[BlackElo "2558"]
[TimeControl "180+1"]
[EndTime "8:28:09 PDT"]
[Termination "LiadCuba won by resignation"]

1. e4 {[%clk 0:02:58.8]} 1... c5 {[%clk 0:02:59.8]} 2. Nf3 {[%clk 0:02:57.1]}
2... d6 {[%clk 0:02:59.5]} 3. c3 {[%clk 0:02:54.7]} 3... Nf6 {[%clk 0:02:59.1]}
4. h3 {[%clk 0:02:53]} 4... b6 {[%clk 0:02:57.4]} 5. Bd3 {[%clk 0:02:47.6]} 5...
Bb7 {[%clk 0:02:56.8]} 6. Qe2 {[%clk 0:02:45.9]} 6... Nbd7 {[%clk 0:02:54.8]} 7.
Bc2 {[%clk 0:02:43.3]} 7... e6 {[%clk 0:02:53.4]} 8. O-O {[%clk 0:02:42.7]} 8...
Rc8 {[%clk 0:02:52.9]} 9. d3 {[%clk 0:02:41]} 9... Be7 {[%clk 0:02:52.8]} 10.
Nbd2 {[%clk 0:02:39.9]} 10... O-O {[%clk 0:02:53.3]} 11. Re1 {[%clk 0:02:39.5]}
11... b5 {[%clk 0:02:42.8]} 12. a3 {[%clk 0:02:38.2]} 12... a5 {[%clk
0:02:42.6]} 13. Nf1 {[%clk 0:02:34.7]} 13... b4 {[%clk 0:02:42.2]} 14. axb4
{[%clk 0:02:34.8]} 14... axb4 {[%clk 0:02:41.2]} 15. Bd2 {[%clk 0:02:04.3]}
15... Qb6 {[%clk 0:02:31.1]} 16. Ne3 {[%clk 0:01:59.7]} 16... Ba6 {[%clk
0:02:17]} 17. Nc4 {[%clk 0:01:48.1]} 17... Bxc4 {[%clk 0:02:16.5]} 18. dxc4
{[%clk 0:01:48.5]} 18... b3 {[%clk 0:02:12]} 19. Bd3 {[%clk 0:01:47.4]} 19...
Ra8 {[%clk 0:02:09.8]} 20. e5 {[%clk 0:01:35.9]} 20... dxe5 {[%clk 0:02:05.9]}
21. Nxe5 {[%clk 0:01:34.8]} 21... Nxe5 {[%clk 0:02:05]} 22. Qxe5 {[%clk
0:01:30.4]} 22... Ra2 {[%clk 0:02:05.5]} 23. Rab1 {[%clk 0:01:27.8]} 23... Rd8
{[%clk 0:02:03.5]} 24. Qg3 {[%clk 0:00:44.7]} 24... Qd6 {[%clk 0:01:21.2]} 25.
Re3 {[%clk 0:00:20.8]} 25... Qxg3 {[%clk 0:01:01.7]} 26. Rxg3 {[%clk 0:00:18.6]}
26... Ne4 {[%clk 0:00:59.4]} 27. Bxe4 {[%clk 0:00:17.4]} 27... Rxd2 {[%clk
0:01:00.3]} 28. Rd3 {[%clk 0:00:13.5]} 28... Rdxb2 {[%clk 0:00:57.4]} 29. Rbd1
{[%clk 0:00:11.4]} 29... g6 {[%clk 0:00:54.4]} 30. Rd7 {[%clk 0:00:11.5]} 30...
Bg5 {[%clk 0:00:43.2]} 31. Rb7 {[%clk 0:00:11.4]} 31... Re2 {[%clk 0:00:32.5]}
32. Bc6 {[%clk 0:00:10.3]} 32... b2 {[%clk 0:00:28.5]} 33. Rb1 {[%clk
0:00:07.6]} 33... Bc1 {[%clk 0:00:16.7]} 34. Bf3 {[%clk 0:00:07.7]} 34... Re1+
{[%clk 0:00:16.1]} 35. Kh2 {[%clk 0:00:07.5]} 35... Bf4+ {[%clk 0:00:16.7]} 36.
g3 {[%clk 0:00:07.6]} 36... Rxb1 {[%clk 0:00:17.6]} 37. gxf4 {[%clk 0:00:07.6]}
37... Rc1 {[%clk 0:00:15.1]} 38. f5 {[%clk 0:00:07.8]} 38... gxf5 {[%clk
0:00:14.3]} 39. Rb8+ {[%clk 0:00:07.6]} 39... Kg7 {[%clk 0:00:14.5]} 0-1

[Event "Early-Titled-Tuesday-Blitz-April-02-2024"]
[Site "Chess.com"]
[Date "2024.04.02"]
[Round "3"]
[White "DefenceWinsChampionships"]
[Black "bazar-wokzal"]
[Result "0-1"]
[WhiteElo "2313"]
[BlackElo "2551"]
[TimeControl "180+1"]
[EndTime "8:28:09 PDT"]
[Termination "bazar-wokzal won on time"]

1. e4 {[%clk 0:03:00.9]} 1... Nc6 {[%clk 0:02:55.4]} 2. Nc3 {[%clk 0:02:56.2]}
2... Nf6 {[%clk 0:02:55.2]} 3. Nf3 {[%clk 0:02:53.8]} 3... d5 {[%clk 0:02:55.1]}
4. exd5 {[%clk 0:02:47.5]} 4... Nxd5 {[%clk 0:02:51.5]} 5. d3 {[%clk 0:02:37.3]}
5... Bg4 {[%clk 0:02:50.3]} 6. Be2 {[%clk 0:02:37]} 6... e6 {[%clk 0:02:50.1]}
7. h3 {[%clk 0:02:36]} 7... Bh5 {[%clk 0:02:49.7]} 8. Bd2 {[%clk 0:02:34.4]}
8... Be7 {[%clk 0:02:49.1]} 9. a3 {[%clk 0:02:33]} 9... O-O {[%clk 0:02:48.8]}
10. O-O {[%clk 0:02:31.3]} 10... Bxf3 {[%clk 0:02:37.4]} 11. Bxf3 {[%clk
0:02:30.7]} 11... Nd4 {[%clk 0:02:37.7]} 12. Nxd5 {[%clk 0:02:13.3]} 12... exd5
{[%clk 0:02:37.1]} 13. Bc3 {[%clk 0:02:13.3]} 13... Bf6 {[%clk 0:02:35]} 14.
Bxd4 {[%clk 0:02:10]} 14... Bxd4 {[%clk 0:02:34.3]} 15. c3 {[%clk 0:02:10.3]}
15... Bb6 {[%clk 0:02:31.3]} 16. d4 {[%clk 0:02:06]} 16... c6 {[%clk 0:02:24.2]}
17. Qd3 {[%clk 0:02:00.1]} 17... Bc7 {[%clk 0:02:23.5]} 18. g3 {[%clk
0:01:56.2]} 18... g6 {[%clk 0:02:22.4]} 19. Rae1 {[%clk 0:01:42.2]} 19... h5
{[%clk 0:02:21.7]} 20. h4 {[%clk 0:01:26.4]} 20... Qf6 {[%clk 0:02:16.4]} 21.
Bd1 {[%clk 0:01:13]} 21... Rae8 {[%clk 0:02:15.6]} 22. Kg2 {[%clk 0:01:11.6]}
22... Re6 {[%clk 0:02:14.5]} 23. Rxe6 {[%clk 0:01:01.6]} 23... Qxe6 {[%clk
0:02:13.8]} 24. Bf3 {[%clk 0:00:34]} 24... Re8 {[%clk 0:02:13]} 25. Rd1 {[%clk
0:00:34]} 25... Kg7 {[%clk 0:01:25.8]} 26. Rd2 {[%clk 0:00:33.8]} 26... Qe1
{[%clk 0:01:25.1]} 27. Re2 {[%clk 0:00:33.9]} 27... Rxe2 {[%clk 0:01:24.9]} 28.
Qxe2 {[%clk 0:00:34.3]} 28... Qxe2 {[%clk 0:01:25.1]} 29. Bxe2 {[%clk
0:00:33.9]} 29... Kh6 {[%clk 0:01:20.3]} 30. f3 {[%clk 0:00:29.1]} 30... g5
{[%clk 0:01:19.2]} 31. hxg5+ {[%clk 0:00:23.9]} 31... Kxg5 {[%clk 0:01:19]} 32.
f4+ {[%clk 0:00:23]} 32... Kg6 {[%clk 0:01:16.5]} 33. Kf3 {[%clk 0:00:19.9]}
33... Bd8 {[%clk 0:01:10.2]} 34. Bd3+ {[%clk 0:00:19]} 34... f5 {[%clk
0:01:09.4]} 35. Bc2 {[%clk 0:00:17.2]} 35... Kf6 {[%clk 0:01:09.4]} 36. Bd3
{[%clk 0:00:17.2]} 36... Ke6 {[%clk 0:01:09.6]} 37. Be2 {[%clk 0:00:17.2]} 37...
h4 {[%clk 0:01:09.7]} 38. gxh4 {[%clk 0:00:16.6]} 38... Bxh4 {[%clk 0:01:10.6]}
39. Bd3 {[%clk 0:00:15.5]} 39... Be1 {[%clk 0:01:10.7]} 40. Ke2 {[%clk
0:00:15.6]} 40... Bg3 {[%clk 0:01:10.8]} 41. Kf3 {[%clk 0:00:15.7]} 41... Bh2
{[%clk 0:01:10.8]} 42. b3 {[%clk 0:00:14.5]} 42... Bg1 {[%clk 0:01:08.9]} 43.
Ke2 {[%clk 0:00:13.4]} 43... Kf6 {[%clk 0:01:07.8]} 44. Kf3 {[%clk 0:00:13.5]}
44... b6 {[%clk 0:01:07.6]} 45. a4 {[%clk 0:00:13.6]} 45... c5 {[%clk
0:01:07.7]} 46. dxc5 {[%clk 0:00:11.7]} 46... bxc5 {[%clk 0:01:07.4]} 47. Ba6
{[%clk 0:00:12]} 47... Bh2 {[%clk 0:01:00.2]} 48. b4 {[%clk 0:00:11.2]} 48... d4
{[%clk 0:00:58.8]} 49. cxd4 {[%clk 0:00:10.2]} 49... cxb4 {[%clk 0:00:59.4]} 50.
Bc4 {[%clk 0:00:10.2]} 50... Bg1 {[%clk 0:00:59]} 51. d5 {[%clk 0:00:09.6]}
51... Ke7 {[%clk 0:00:59.4]} 52. Kg2 {[%clk 0:00:05.4]} 52... Bd4 {[%clk
0:00:57.8]} 53. Kf3 {[%clk 0:00:04.8]} 53... Kd6 {[%clk 0:00:58.1]} 54. Bb3
{[%clk 0:00:04.8]} 54... Kc5 {[%clk 0:00:57.5]} 55. Ke2 {[%clk 0:00:04.6]} 55...
Bb2 {[%clk 0:00:55.9]} 0-1

[Event "Early-Titled-Tuesday-Blitz-April-02-2024"]
[Site "Chess.com"]
[Date "2024.04.02"]
[Round "3"]
[White "FMStan15"]
[Black "ArchibaldCerveza29"]
[Result "1-0"]
[WhiteElo "2118"]
[BlackElo "2356"]
[TimeControl "180+1"]
[EndTime "8:28:10 PDT"]
[Termination "FMStan15 won by checkmate"]

1. e4 {[%clk 0:03:00.9]} 1... Nc6 {[%clk 0:02:57.6]} 2. d4 {[%clk 0:02:59]} 2...
d5 {[%clk 0:02:56.4]} 3. e5 {[%clk 0:02:58.6]} 3... f6 {[%clk 0:02:56.1]} 4. Nf3
{[%clk 0:02:52.2]} 4... Bg4 {[%clk 0:02:55.7]} 5. Bf4 {[%clk 0:02:48.3]} 5...
Qd7 {[%clk 0:02:55.4]} 6. Be2 {[%clk 0:02:47.1]} 6... O-O-O {[%clk 0:02:54.4]}
7. O-O {[%clk 0:02:45.4]} 7... fxe5 {[%clk 0:02:53.1]} 8. Nxe5 {[%clk 0:02:43]}
8... Nxe5 {[%clk 0:02:50.9]} 9. Bxe5 {[%clk 0:02:36.8]} 9... Bxe2 {[%clk
0:02:50.9]} 10. Qxe2 {[%clk 0:02:36.6]} 10... e6 {[%clk 0:02:51.8]} 11. c3
{[%clk 0:02:34.9]} 11... Nf6 {[%clk 0:02:52]} 12. Nd2 {[%clk 0:02:33.1]} 12...
Bd6 {[%clk 0:02:51.3]} 13. Nf3 {[%clk 0:02:32.8]} 13... Rdf8 {[%clk 0:02:43.7]}
14. b4 {[%clk 0:02:28.8]} 14... Rhg8 {[%clk 0:02:38.6]} 15. Rae1 {[%clk
0:02:20.3]} 15... g5 {[%clk 0:02:36.9]} 16. Bxf6 {[%clk 0:02:19.4]} 16... Rxf6
{[%clk 0:02:37.8]} 17. Ne5 {[%clk 0:02:19.3]} 17... Qg7 {[%clk 0:02:35]} 18. Ng4
{[%clk 0:02:16.9]} 18... Rg6 {[%clk 0:02:29.8]} 19. a4 {[%clk 0:02:01.8]} 19...
h5 {[%clk 0:02:29.3]} 20. Ne5 {[%clk 0:01:58.8]} 20... Rh6 {[%clk 0:02:29.5]}
21. b5 {[%clk 0:01:56.5]} 21... g4 {[%clk 0:02:29.5]} 22. a5 {[%clk 0:01:51.8]}
22... h4 {[%clk 0:02:23.1]} 23. b6 {[%clk 0:01:50.9]} 23... a6 {[%clk
0:02:20.8]} 24. bxc7 {[%clk 0:01:50]} 24... Rh5 {[%clk 0:02:12.9]} 25. c4 {[%clk
0:01:45.9]} 25... dxc4 {[%clk 0:02:02.2]} 26. Nxc4 {[%clk 0:01:42.2]} 26... Bxc7
{[%clk 0:02:01.5]} 27. Qxe6+ {[%clk 0:01:42.1]} 27... Kb8 {[%clk 0:01:57.9]} 28.
d5 {[%clk 0:01:41.6]} 28... g3 {[%clk 0:01:52.9]} 29. fxg3 {[%clk 0:01:39.3]}
29... hxg3 {[%clk 0:01:41.1]} 30. h3 {[%clk 0:01:34.6]} 30... Qd4+ {[%clk
0:01:39.8]} 31. Ne3 {[%clk 0:01:33.3]} 31... Rd8 {[%clk 0:01:32.9]} 32. Qg4
{[%clk 0:01:27.4]} 32... Qh8 {[%clk 0:01:27.8]} 33. Rb1 {[%clk 0:01:18.5]} 33...
Re5 {[%clk 0:01:16.5]} 34. Qb4 {[%clk 0:01:17.5]} 34... b5 {[%clk 0:01:08.4]}
35. axb6 {[%clk 0:01:16.7]} 35... Bd6 {[%clk 0:01:08.8]} 36. Qc3 {[%clk
0:01:03.8]} 36... Rc8 {[%clk 0:01:03.2]} 37. Qd3 {[%clk 0:00:58.7]} 37... Rxe3
{[%clk 0:00:55.3]} 38. Qxa6 {[%clk 0:00:58.3]} 38... Ra3 {[%clk 0:00:35.8]} 39.
Qb5 {[%clk 0:00:48.7]} 39... Ra2 {[%clk 0:00:24.4]} 40. Kh1 {[%clk 0:00:20.9]}
40... Bc5 {[%clk 0:00:18.7]} 41. Qd7 {[%clk 0:00:13.6]} 41... Rf2 {[%clk
0:00:14.4]} 42. Rfc1 {[%clk 0:00:11]} 42... Qd8 {[%clk 0:00:01.3]} 43. Qa7#
{[%clk 0:00:10.5]} 1-0

[Event "Early-Titled-Tuesday-Blitz-April-02-2024"]
[Site "Chess.com"]
[Date "2024.04.02"]
[Round "3"]
[White "A-Fier"]
[Black "Meri-Arabidze"]
[Result "1/2-1/2"]
[WhiteElo "2904"]
[BlackElo "2691"]
[TimeControl "180+1"]
[EndTime "8:28:11 PDT"]
[Termination "Game drawn - insufficient material"]

1. d4 {[%clk 0:02:57]} 1... Nf6 {[%clk 0:02:59.4]} 2. Bg5 {[%clk 0:02:57.3]}
2... d5 {[%clk 0:02:59]} 3. Bxf6 {[%clk 0:02:57]} 3... exf6 {[%clk 0:02:59.9]}
4. e3 {[%clk 0:02:56.5]} 4... Bd6 {[%clk 0:02:56.5]} 5. g3 {[%clk 0:02:57]} 5...
O-O {[%clk 0:02:56]} 6. Bg2 {[%clk 0:02:57.5]} 6... c6 {[%clk 0:02:56.5]} 7. Ne2
{[%clk 0:02:57.9]} 7... Bg4 {[%clk 0:02:54]} 8. Nd2 {[%clk 0:02:57.9]} 8... Re8
{[%clk 0:02:49.2]} 9. Bf3 {[%clk 0:02:58]} 9... Bh3 {[%clk 0:02:43.2]} 10. c4
{[%clk 0:02:56.4]} 10... dxc4 {[%clk 0:02:36.2]} 11. Nxc4 {[%clk 0:02:57.3]}
11... Bb4+ {[%clk 0:02:36.3]} 12. Nc3 {[%clk 0:02:57.1]} 12... Nd7 {[%clk
0:02:31.1]} 13. Qc2 {[%clk 0:02:56.4]} 13... Nb6 {[%clk 0:02:29.6]} 14. Nxb6
{[%clk 0:02:53.6]} 14... axb6 {[%clk 0:02:27]} 15. a3 {[%clk 0:02:51.6]} 15...
Qxd4 {[%clk 0:02:22.1]} 16. Rd1 {[%clk 0:02:43.1]} 16... Bxc3+ {[%clk
0:02:21.7]} 17. bxc3 {[%clk 0:02:42]} 17... Qc5 {[%clk 0:02:18.2]} 18. a4 {[%clk
0:02:39.8]} 18... Rad8 {[%clk 0:02:09.8]} 19. c4 {[%clk 0:02:29.6]} 19... Bf5
{[%clk 0:01:23.1]} 20. Qb3 {[%clk 0:02:29.1]} 20... Be6 {[%clk 0:01:13.9]} 21.
Rxd8 {[%clk 0:02:21.9]} 21... Rxd8 {[%clk 0:01:13.9]} 22. Be2 {[%clk 0:02:22.6]}
22... Bh3 {[%clk 0:01:12.7]} 23. f3 {[%clk 0:02:19]} 23... h5 {[%clk 0:00:52.5]}
24. Kf2 {[%clk 0:02:19]} 24... Rd2 {[%clk 0:00:49.5]} 25. Rd1 {[%clk 0:02:06.7]}
25... Rxd1 {[%clk 0:00:48.3]} 26. Qxd1 {[%clk 0:02:06.7]} 26... g6 {[%clk
0:00:38.6]} 27. Qd8+ {[%clk 0:02:00.4]} 27... Kg7 {[%clk 0:00:38.9]} 28. Qc7
{[%clk 0:02:01.1]} 28... Be6 {[%clk 0:00:20]} 29. Qf4 {[%clk 0:01:28.8]} 29...
Qb4 {[%clk 0:00:19.6]} 30. g4 {[%clk 0:01:29]} 30... hxg4 {[%clk 0:00:18.9]} 31.
fxg4 {[%clk 0:01:29.9]} 31... Qxa4 {[%clk 0:00:18.6]} 32. h4 {[%clk 0:01:28.8]}
32... Qa1 {[%clk 0:00:17.9]} 33. h5 {[%clk 0:01:24.9]} 33... Qe5 {[%clk
0:00:17.7]} 34. Kg3 {[%clk 0:01:15.4]} 34... Qxf4+ {[%clk 0:00:17.2]} 35. Kxf4
{[%clk 0:01:16.3]} 35... Bd7 {[%clk 0:00:14]} 36. Ke4 {[%clk 0:01:10.9]} 36...
b5 {[%clk 0:00:11.9]} 37. c5 {[%clk 0:01:11.4]} 37... Be6 {[%clk 0:00:11]} 38.
Kd4 {[%clk 0:01:11.4]} 38... gxh5 {[%clk 0:00:11]} 39. gxh5 {[%clk 0:01:11.4]}
39... Kh6 {[%clk 0:00:11.6]} 40. Kc3 {[%clk 0:01:11.2]} 40... Kg5 {[%clk
0:00:11.8]} 41. Kb4 {[%clk 0:01:11.2]} 41... Bc4 {[%clk 0:00:09.3]} 42. Bd1
{[%clk 0:01:10.5]} 42... f5 {[%clk 0:00:06.9]} 43. Ka5 {[%clk 0:01:10.5]} 43...
Kh6 {[%clk 0:00:06]} 44. Bf3 {[%clk 0:01:07.9]} 44... Bd5 {[%clk 0:00:05.4]} 45.
Bxd5 {[%clk 0:01:03.7]} 45... cxd5 {[%clk 0:00:06.3]} 46. Kxb5 {[%clk
0:01:04.5]} 46... Kxh5 {[%clk 0:00:06.5]} 47. Kb6 {[%clk 0:01:05.3]} 47... d4
{[%clk 0:00:07.2]} 48. exd4 {[%clk 0:01:02.4]} 48... f4 {[%clk 0:00:07.7]} 49.
Kxb7 {[%clk 0:01:03.3]} 49... f3 {[%clk 0:00:08.2]} 50. c6 {[%clk 0:01:04]}
50... f2 {[%clk 0:00:09.1]} 51. c7 {[%clk 0:01:04.6]} 51... f1=Q {[%clk
0:00:09.7]} 52. c8=Q {[%clk 0:01:05.3]} 52... Qb5+ {[%clk 0:00:09.8]} 53. Ka7
{[%clk 0:00:59.3]} 53... Qa4+ {[%clk 0:00:10.1]} 54. Kb8 {[%clk 0:00:57]} 54...
Qxd4 {[%clk 0:00:09.4]} 55. Qf5+ {[%clk 0:00:57.1]} 55... Kh6 {[%clk 0:00:08.9]}
56. Qxf7 {[%clk 0:00:57.1]} 56... Qb4+ {[%clk 0:00:09]} 57. Kc8 {[%clk
0:00:57.2]} 57... Qc3+ {[%clk 0:00:08.9]} 58. Kd7 {[%clk 0:00:57.2]} 58... Qd4+
{[%clk 0:00:09.1]} 59. Kc6 {[%clk 0:00:57.3]} 59... Qc3+ {[%clk 0:00:09.3]} 60.
Kb5 {[%clk 0:00:57.6]} 60... Qb2+ {[%clk 0:00:09.4]} 61. Ka4 {[%clk 0:00:58]}
61... Qa1+ {[%clk 0:00:09.4]} 62. Kb4 {[%clk 0:00:58.5]} 62... Qb2+ {[%clk
0:00:09.6]} 63. Kc5 {[%clk 0:00:59]} 63... Qc3+ {[%clk 0:00:09.9]} 64. Kd6
{[%clk 0:00:59.6]} 64... Qd4+ {[%clk 0:00:10.1]} 65. Ke7 {[%clk 0:01:00]} 65...
Qe5+ {[%clk 0:00:10.2]} 66. Qe6+ {[%clk 0:01:00.1]} 66... Qxe6+ {[%clk
0:00:10.5]} 67. Kxe6 {[%clk 0:01:01]} 1/2-1/2

[Event "Early-Titled-Tuesday-Blitz-April-02-2024"]
[Site "Chess.com"]
[Date "2024.04.02"]
[Round "3"]
[White "Darkdefense15"]
[Black "IakovUlivar"]
[Result "1-0"]
[WhiteElo "2325"]
[BlackElo "2568"]
[TimeControl "180+1"]
[EndTime "8:28:11 PDT"]
[Termination "Darkdefense15 won on time"]

1. d4 {[%clk 0:03:00.9]} 1... g6 {[%clk 0:03:00.9]} 2. Bf4 {[%clk 0:02:59.9]}
2... Bg7 {[%clk 0:02:59.3]} 3. Nc3 {[%clk 0:03:00.4]} 3... d6 {[%clk 0:02:56.7]}
4. e4 {[%clk 0:03:00.4]} 4... Nc6 {[%clk 0:02:51.3]} 5. Nge2 {[%clk 0:02:51.8]}
5... e5 {[%clk 0:02:37.5]} 6. Be3 {[%clk 0:02:41.3]} 6... Bd7 {[%clk 0:02:16.2]}
7. f3 {[%clk 0:02:34.9]} 7... exd4 {[%clk 0:02:09.5]} 8. Nxd4 {[%clk 0:02:34.9]}
8... Nge7 {[%clk 0:02:08.6]} 9. Qd2 {[%clk 0:02:33.6]} 9... O-O {[%clk
0:02:03.6]} 10. O-O-O {[%clk 0:02:31]} 10... Nxd4 {[%clk 0:02:01.3]} 11. Bxd4
{[%clk 0:02:30.1]} 11... Bxd4 {[%clk 0:02:02.2]} 12. Qxd4 {[%clk 0:02:30.7]}
12... Nc6 {[%clk 0:01:58.2]} 13. Qd2 {[%clk 0:02:24.8]} 13... Be6 {[%clk
0:01:56.5]} 14. h4 {[%clk 0:02:20.8]} 14... f5 {[%clk 0:01:37.6]} 15. h5 {[%clk
0:02:12.9]} 15... f4 {[%clk 0:01:30.2]} 16. hxg6 {[%clk 0:02:09.4]} 16... hxg6
{[%clk 0:01:31.1]} 17. Nd5 {[%clk 0:01:50.4]} 17... Bxd5 {[%clk 0:01:29.5]} 18.
Qxd5+ {[%clk 0:01:50.1]} 18... Kg7 {[%clk 0:01:30]} 19. Bc4 {[%clk 0:01:29.7]}
19... Ne5 {[%clk 0:01:25]} 20. Bb3 {[%clk 0:01:27.3]} 20... Rb8 {[%clk
0:01:13.4]} 21. Rh3 {[%clk 0:01:22.5]} 21... Rh8 {[%clk 0:01:04.6]} 22. Rxh8
{[%clk 0:01:17.4]} 22... Qxh8 {[%clk 0:01:02.1]} 23. Qe6 {[%clk 0:01:10.9]}
23... Re8 {[%clk 0:00:56.8]} 24. Qd5 {[%clk 0:01:10.8]} 24... b6 {[%clk
0:00:51.8]} 25. Ba4 {[%clk 0:01:00.7]} 25... Rf8 {[%clk 0:00:48.2]} 26. Bb3
{[%clk 0:00:45.4]} 26... a5 {[%clk 0:00:44.8]} 27. Qb7 {[%clk 0:00:43.8]} 27...
Qh2 {[%clk 0:00:24.2]} 28. Qxc7+ {[%clk 0:00:43.4]} 28... Kh6 {[%clk 0:00:18.3]}
29. Qxd6 {[%clk 0:00:40.7]} 29... Re8 {[%clk 0:00:18.8]} 30. Ba4 {[%clk
0:00:38.7]} 30... Nc4 {[%clk 0:00:16.1]} 31. Qd4 {[%clk 0:00:24.6]} 31... Rc8
{[%clk 0:00:11.3]} 32. Bd7 {[%clk 0:00:19.7]} 32... Rd8 {[%clk 0:00:03.5]} 33.
Qxc4 {[%clk 0:00:18.9]} 33... Qxg2 {[%clk 0:00:04.2]} 34. Qd4 {[%clk 0:00:16.4]}
34... Qxf3 {[%clk 0:00:02.9]} 35. b3 {[%clk 0:00:15.8]} 35... Kg5 {[%clk
0:00:01.8]} 36. Rg1+ {[%clk 0:00:15.6]} 36... Kh6 {[%clk 0:00:01.9]} 37. Qf6
{[%clk 0:00:14.9]} 37... Qe3+ {[%clk 0:00:01.9]} 38. Kb2 {[%clk 0:00:14.7]}
38... Qxg1 {[%clk 0:00:02.8]} 39. Qxd8 {[%clk 0:00:14.9]} 39... Qd4+ {[%clk
0:00:02.2]} 40. c3 {[%clk 0:00:14.2]} 40... Qd2+ {[%clk 0:00:01.9]} 41. Kb1
{[%clk 0:00:14.1]} 41... Qd1+ {[%clk 0:00:02]} 42. Kb2 {[%clk 0:00:14.2]} 42...
Qd2+ {[%clk 0:00:02.9]} 43. Ka3 {[%clk 0:00:09.4]} 1-0

[Event "Early-Titled-Tuesday-Blitz-April-02-2024"]
[Site "Chess.com"]
[Date "2024.04.02"]
[Round "3"]
[White "MIss_MIaMI"]
[Black "ricaurtelopezj1955"]
[Result "0-1"]
[WhiteElo "2363"]
[BlackElo "2169"]
[TimeControl "180+1"]
[EndTime "8:28:11 PDT"]
[Termination "ricaurtelopezj1955 won by checkmate"]

1. e4 {[%clk 0:03:00.9]} 1... e6 {[%clk 0:02:50.5]} 2. d4 {[%clk 0:03:00.3]}
2... d5 {[%clk 0:02:49.4]} 3. exd5 {[%clk 0:03:01.2]} 3... exd5 {[%clk
0:02:48.2]} 4. Qf3 {[%clk 0:03:01.5]} 4... Bd6 {[%clk 0:02:39.4]} 5. Bd3 {[%clk
0:03:00.3]} 5... Ne7 {[%clk 0:02:37.1]} 6. h3 {[%clk 0:03:00.2]} 6... Nbc6
{[%clk 0:02:30.7]} 7. c3 {[%clk 0:02:59.9]} 7... Be6 {[%clk 0:02:23.3]} 8. Ne2
{[%clk 0:02:55.1]} 8... Qd7 {[%clk 0:02:18.2]} 9. Be3 {[%clk 0:02:50.6]} 9...
O-O-O {[%clk 0:02:15.5]} 10. Nd2 {[%clk 0:02:51.3]} 10... f6 {[%clk 0:01:58.7]}
11. O-O-O {[%clk 0:02:45.6]} 11... g5 {[%clk 0:01:54.1]} 12. Qxf6 {[%clk
0:02:07.1]} 12... Rdf8 {[%clk 0:01:49.6]} 13. Qxg5 {[%clk 0:02:07.4]} 13... Rhg8
{[%clk 0:01:43.4]} 14. Qh4 {[%clk 0:01:53.5]} 14... Rxg2 {[%clk 0:01:39.8]} 15.
Nf4 {[%clk 0:01:34.5]} 15... Bxf4 {[%clk 0:01:12.3]} 16. Bxf4 {[%clk 0:01:34.7]}
16... Ng6 {[%clk 0:01:04]} 17. Bxg6 {[%clk 0:01:34.4]} 17... hxg6 {[%clk
0:01:02.9]} 18. Bg3 {[%clk 0:01:24.7]} 18... Na5 {[%clk 0:00:48.3]} 19. Qg5
{[%clk 0:01:19.4]} 19... Rfxf2 {[%clk 0:00:36]} 20. Qxg6 {[%clk 0:00:50.7]}
20... Rf8 {[%clk 0:00:29.1]} 21. Rdf1 {[%clk 0:00:46.4]} 21... Rg8 {[%clk
0:00:24]} 22. Qxg8+ {[%clk 0:00:39.4]} 22... Bxg8 {[%clk 0:00:20.6]} 23. Rf8+
{[%clk 0:00:40.1]} 23... Qd8 {[%clk 0:00:20.6]} 24. Rxd8+ {[%clk 0:00:40.3]}
24... Kxd8 {[%clk 0:00:20.3]} 25. Bh4+ {[%clk 0:00:40.1]} 25... Kd7 {[%clk
0:00:17.6]} 26. Bf6 {[%clk 0:00:37.2]} 26... Bh7 {[%clk 0:00:16.2]} 27. h4
{[%clk 0:00:35.1]} 27... Nc4 {[%clk 0:00:15.8]} 28. Nxc4 {[%clk 0:00:35.3]}
28... dxc4 {[%clk 0:00:13.1]} 29. Rg1 {[%clk 0:00:28.3]} 29... Rxg1+ {[%clk
0:00:11.9]} 30. Kd2 {[%clk 0:00:27.6]} 30... Rh1 {[%clk 0:00:09.9]} 31. b3
{[%clk 0:00:26.2]} 31... cxb3 {[%clk 0:00:08.7]} 32. axb3 {[%clk 0:00:27.1]}
32... a5 {[%clk 0:00:08.2]} 33. c4 {[%clk 0:00:26.4]} 33... Rh3 {[%clk
0:00:06.7]} 34. d5 {[%clk 0:00:21]} 34... b6 {[%clk 0:00:06.9]} 35. Bc3 {[%clk
0:00:21.2]} 35... c6 {[%clk 0:00:05.3]} 36. dxc6+ {[%clk 0:00:20.1]} 36... Kxc6
{[%clk 0:00:04.7]} 37. Bf6 {[%clk 0:00:20.8]} 37... Rxb3 {[%clk 0:00:03.6]} 38.
Bc3 {[%clk 0:00:19.4]} 38... a4 {[%clk 0:00:04.2]} 39. Bf6 {[%clk 0:00:14.1]}
39... a3 {[%clk 0:00:04.7]} 40. Kc1 {[%clk 0:00:15]} 40... a2 {[%clk 0:00:03.7]}
41. Bg7 {[%clk 0:00:15.7]} 41... a1=Q+ {[%clk 0:00:02.8]} 42. Kd2 {[%clk
0:00:16.4]} 42... Qa2+ {[%clk 0:00:02.1]} 43. Bb2 {[%clk 0:00:12.7]} 43... Rxb2+
{[%clk 0:00:02.5]} 44. Kd1 {[%clk 0:00:13.5]} 44... Rb1# {[%clk 0:00:02.8]} 0-1